bitfinex/quotes_BTCUSD_20241107
["timestamp","ask_amount","ask_price","bid_price","bid_amount"]
[1731006591502,0.00167,76346.0,76335.0,0.00049014]
[1731006591742,0.32828229,76345.0,76335.0,0.00049014]
[1731006592476,0.32828229,76345.0,76336.0,0.00023531]
[1731006592477,0.01472147,76344.0,76336.0,0.00023531]
[1731006592692,0.13224102,76343.0,76336.0,0.00023531]
[1731006592923,0.13224102,76343.0,76340.0,0.00049014]
[1731006593169,0.13224102,76343.0,76342.0,0.00049014]
[1731006594854,0.13224102,76343.0,76342.0,0.00072545]
[1731006595760,0.13224102,76343.0,76336.0,0.00049014]
[1731006596626,0.13224102,76343.0,76341.0,0.34605517]
[1731006596857,0.13224102,76343.0,76342.0,0.10049014]
[1731006598012,0.00167,76345.0,76344.0,0.00049014]
[1731006598273,0.00167,76373.0,76344.0,0.00310957]
[1731006598502,0.19604127,76356.0,76355.0,0.00049014]
[1731006598760,0.13224102,76356.0,76355.0,0.00549014]
[1731006599007,0.00167,76373.0,76359.0,0.00549014]
[1731006599235,0.13391102,76360.0,76359.0,0.00049014]
[1731006599523,0.13391102,76360.0,76356.0,0.1]
[1731006599762,0.19604127,76357.0,76346.0,0.00049014]
[1731006599999,0.13224102,76356.0,76347.0,0.00049014]
[1731006600505,0.13224102,76348.0,76342.0,0.03355909]
[1731006600753,0.13224102,76346.0,76342.0,0.03355909]
[1731006600976,0.13224102,76346.0,76339.0,0.19604127]
[1731006601473,0.13224102,76346.0,76343.0,0.34605517]
[1731006601710,0.13224102,76346.0,76345.0,0.00049014]
[1731006601930,0.00450986,76379.0,76359.0,0.00049014]
[1731006602139,0.00450986,76379.0,76359.0,0.34654531]
[1731006602140,0.13391102,76360.0,76359.0,0.34654531]
[1731006602552,0.13391102,76360.0,76359.0,0.44605517]
[1731006602814,0.13391102,76360.0,76347.0,0.00049014]
[1731006603031,0.13391102,76360.0,76339.0,0.34605517]
[1731006603032,0.13224102,76348.0,76339.0,0.19604127]
[1731006603284,0.00176469,76357.0,76339.0,0.19604127]
[1731006603285,0.13224102,76346.0,76339.0,0.19604127]
[1731006603471,0.13224102,76346.0,76335.0,0.00049014]
[1731006604098,0.13224102,76340.0,76329.0,0.34654531]
[1731006604324,0.13224102,76340.0,76312.0,0.005]
[1731006604325,0.13224102,76333.0,76327.0,0.00049014]
[1731006604514,0.13224102,76332.0,76320.0,0.34629048]
[1731006604722,0.13224102,76332.0,76322.0,0.19604127]
[1731006604920,0.13224102,76332.0,76320.0,0.34629048]
[1731006605546,0.13224102,76332.0,76322.0,0.00049014]
[1731006605980,0.13224102,76332.0,76331.0,0.00072545]
[1731006606185,0.03329699,76353.0,76330.0,0.1]
[1731006606186,0.03329699,76353.0,76341.0,0.00049014]
[1731006606396,0.13224102,76352.0,76348.0,0.10049014]
[1731006606803,0.13224102,76352.0,76348.0,0.1]
[1731006607007,0.13224102,76352.0,76347.0,0.1]
[1731006607649,0.13224102,76352.0,76343.0,0.00049014]
[1731006608443,0.13224102,76352.0,76343.0,0.03522061]
[1731006609882,0.13224102,76352.0,76351.0,0.00049014]
[1731006610338,0.13224102,76352.0,76347.0,0.1]
[1731006610339,0.00167,76360.0,76359.0,0.00049014]
[1731006610568,0.00167,76360.0,76359.0,0.44654531]
[1731006612406,0.00167,76360.0,76359.0,0.44605517]
[1731006612632,0.03750986,76352.0,76351.0,0.03355695]
[1731006612874,0.03750986,76352.0,76333.0,0.19604127]
[1731006612875,0.023,76342.0,76333.0,0.19604127]
[1731006613077,0.15524102,76352.0,76338.0,0.00049014]
[1731006613798,0.13224102,76352.0,76349.0,0.00049014]
[1731006614005,0.13224102,76352.0,76351.0,0.00049014]
[1731006614229,0.00167,76360.0,76359.0,0.00072545]
[1731006614472,0.00167,76360.0,76359.0,0.34678062]
[1731006615078,0.00167,76360.0,76359.0,0.44678062]
[1731006615772,0.13391102,76360.0,76359.0,0.44678062]
[1731006616234,0.13391102,76360.0,76359.0,0.44654531]
[1731006616468,0.13391102,76360.0,76354.0,0.00023531]
[1731006616469,0.13391102,76360.0,76354.0,0.00049014]
[1731006616701,0.13224102,76359.0,76352.0,0.00049014]
[1731006616939,0.13148502,76359.0,76357.0,0.00049014]
[1731006617162,0.00167,76360.0,76359.0,0.11549014]
[1731006617377,0.00167,76360.0,76359.0,0.1316611]
[1731006617597,0.00167,76373.0,76372.0,0.00049014]
[1731006617807,0.13391102,76373.0,76372.0,0.44678062]
[1731006619421,0.00167,76373.0,76372.0,0.45178062]
[1731006619660,0.00167,76373.0,76372.0,0.46178062]
[1731006619875,0.00167,76373.0,76372.0,0.45678062]
[1731006620651,0.00676469,76409.0,76372.0,0.45678062]
[1731006620652,0.0243405,76402.0,76372.0,0.45178062]
[1731006620892,0.13224102,76401.0,76400.0,0.44605517]
[1731006621593,0.13224102,76401.0,76385.0,0.00049014]
[1731006621809,0.13224102,76401.0,76388.0,0.00049014]
[1731006622036,0.01216652,76400.0,76388.0,0.00049014]
[1731006622264,0.13224102,76401.0,76388.0,0.00049014]
[1731006622769,0.13224102,76397.0,76388.0,0.00049014]
[1731006623022,0.13224102,76397.0,76385.0,0.00023531]
[1731006623023,0.13224102,76397.0,76390.0,0.10049014]
[1731006623968,0.13224102,76397.0,76390.0,0.00049014]
[1731006624242,0.13224102,76396.0,76386.0,0.00049014]
[1731006624467,0.13224102,76396.0,76395.0,0.00049014]
[1731006625205,0.13224102,76396.0,76395.0,0.00072545]
[1731006625649,0.13224102,76396.0,76395.0,0.00049014]
[1731006626817,0.13224102,76396.0,76394.0,0.00049014]
[1731006627268,0.13224102,76396.0,76393.0,0.00049014]
[1731006627543,0.13224102,76396.0,76389.0,0.00072545]
[1731006627774,0.13224102,76396.0,76393.0,0.00049014]
[1731006628679,0.13224102,76396.0,76395.0,0.00049014]
[1731006629372,0.13224102,76396.0,76389.0,0.10023531]
[1731006629373,0.13224102,76396.0,76393.0,0.00049014]
[1731006629588,0.14546512,76396.0,76395.0,0.00049014]
[1731006629797,0.13224102,76396.0,76395.0,0.00049014]
[1731006630022,0.13224102,76396.0,76386.0,0.005]
[1731006630023,0.13224102,76396.0,76387.0,0.00049014]
[1731006630261,0.13224102,76395.0,76388.0,0.19604127]
[1731006630515,0.14546512,76395.0,76388.0,0.19604127]
[1731006630748,0.14546512,76395.0,76386.0,0.00049014]
[1731006630972,0.13224102,76393.0,76384.0,0.00049014]
[1731006631640,0.13199178,76393.0,76384.0,0.00049014]
[1731006631871,0.13224102,76387.0,76378.0,0.00049014]
[1731006632099,0.13224102,76380.0,76379.0,0.19604127]
[1731006632328,0.023,76389.0,76371.0,0.19604127]
[1731006632558,0.023,76389.0,76379.0,0.00336695]
[1731006632795,0.023,76389.0,76363.0,0.20104127]
[1731006632796,0.023,76385.0,76363.0,0.19627658]
[1731006633020,0.023,76375.0,76371.0,0.19604127]
[1731006633252,0.023,76371.0,76364.0,0.00337584]
[1731006633474,0.023,76371.0,76363.0,0.19604127]
[1731006633475,0.13224102,76365.0,76363.0,0.19604127]
[1731006633694,0.023,76371.0,76363.0,0.19604127]
[1731006633695,0.13224102,76364.0,76363.0,0.19604127]
[1731006633904,0.13224102,76364.0,76355.0,0.00023531]
[1731006634147,0.13224102,76363.0,76355.0,0.00023531]
[1731006634381,0.13224102,76363.0,76360.0,0.00049014]
[1731006636778,0.13224102,76361.0,76352.0,0.00049014]
[1731006636988,0.0387487,76377.0,76345.0,0.19736641]
[1731006636989,0.15524102,76360.0,76345.0,0.19736641]
[1731006637407,0.16741299,76360.0,76345.0,0.19736641]
[1731006638034,0.16741299,76360.0,76346.0,0.1]
[1731006639761,0.16741299,76360.0,76345.0,0.19687627]
[1731006639762,0.19586202,76360.0,76345.0,0.19687627]
[1731006639968,0.023,76354.0,76345.0,0.19687627]
[1731006640186,0.13224102,76346.0,76345.0,0.19687627]
[1731006640396,0.14441127,76346.0,76345.0,0.19687627]
[1731006640642,0.14441127,76346.0,76345.0,0.000835]
[1731006641063,0.1565819,76346.0,76345.0,0.000835]
[1731006641270,0.14441127,76346.0,76345.0,0.000835]
[1731006642224,0.14440533,76346.0,76345.0,0.000835]
[1731006642436,0.13224102,76346.0,76345.0,0.000835]
[1731006642651,0.15524102,76346.0,76345.0,0.000835]
[1731006643491,0.13224102,76346.0,76345.0,0.00391239]
[1731006643717,0.16559635,76346.0,76345.0,0.000835]
[1731006643923,0.16559635,76346.0,76345.0,0.00132514]
[1731006644152,0.08234744,76365.0,76345.0,0.00132514]
[1731006644153,0.03891879,76367.0,76352.0,0.00049014]
[1731006644362,0.00676469,76380.0,76352.0,0.00049014]
[1731006644363,0.19604127,76359.0,76358.0,0.00049014]
[1731006644576,0.19604127,76359.0,76353.0,0.1]
[1731006644577,0.13224102,76359.0,76353.0,0.1]
[1731006644796,0.13224102,76355.0,76353.0,0.1]
[1731006645010,0.13224102,76354.0,76353.0,0.1]
[1731006645223,0.13224102,76354.0,76345.0,0.000835]
[1731006645445,0.15524102,76346.0,76345.0,0.000835]
[1731006645692,0.023,76346.0,76345.0,0.000835]
[1731006645907,0.0573727,76356.0,76345.0,0.000835]
[1731006646147,0.023,76362.0,76345.0,0.00132514]
[1731006646373,0.023,76356.0,76345.0,0.00132514]
[1731006646605,0.13224102,76353.0,76347.0,0.1]
[1731006647098,0.13224102,76348.0,76347.0,0.1]
[1731006647320,0.1319911,76348.0,76347.0,0.1]
[1731006647547,0.023,76347.0,76345.0,0.000835]
[1731006647771,0.0243806,76356.0,76345.0,0.000835]
[1731006647772,0.15524102,76346.0,76345.0,0.000835]
[1731006650723,0.15700571,76346.0,76345.0,0.000835]
[1731006650937,0.17749066,76346.0,76345.0,0.000835]
[1731006651150,0.17572597,76346.0,76345.0,0.000835]
[1731006651577,0.13224102,76346.0,76345.0,0.000835]
[1731006652028,0.15524102,76346.0,76345.0,0.000835]
[1731006653846,0.13224102,76346.0,76345.0,0.000835]
[1731006654573,0.13224102,76346.0,76345.0,0.00367844]
[1731006654807,0.13224102,76346.0,76345.0,0.000835]
[1731006655038,0.13224102,76346.0,76345.0,0.00367844]
[1731006655281,0.13224102,76346.0,76345.0,0.000835]
[1731006655497,0.13224102,76346.0,76345.0,0.00416833]
[1731006656881,0.13224102,76346.0,76345.0,0.00367819]
[1731006657584,0.16151557,76346.0,76345.0,0.00367819]
[1731006658045,0.16151557,76346.0,76345.0,0.000835]
[1731006658489,0.15975088,76346.0,76345.0,0.000835]
[1731006658930,0.16151557,76346.0,76345.0,0.000835]
[1731006659152,0.17706944,76346.0,76345.0,0.000835]
[1731006659380,0.00450986,76337.0,76336.0,0.19604127]
[1731006659587,0.023,76336.0,76326.0,0.1]
[1731006659813,0.023,76336.0,76334.0,0.19604127]
[1731006660058,0.00450986,76341.0,76326.0,0.1]
[1731006660283,0.023,76340.0,76326.0,0.13439539]
[1731006660500,0.023,76344.0,76328.0,0.22943092]
[1731006660722,0.13224102,76332.0,76329.0,0.1]
[1731006661663,0.13224102,76332.0,76330.0,0.00049014]
[1731006661877,0.13224102,76332.0,76331.0,0.00049014]
[1731006662539,0.13224102,76332.0,76331.0,0.1]
[1731006663396,0.13224102,76332.0,76331.0,0.10049014]
[1731006663639,0.05404,76352.0,76327.0,0.00023531]
[1731006663640,0.00167,76352.0,76341.0,0.00049014]
[1731006663903,0.19604127,76342.0,76341.0,0.00049014]
[1731006664120,0.13224102,76342.0,76341.0,0.00049014]
[1731006665269,0.13224102,76342.0,76341.0,0.32992106]
[1731006665779,0.13224102,76342.0,76341.0,0.1027162]
[1731006666026,0.13224102,76342.0,76341.0,0.0027162]
[1731006666549,0.13224102,76342.0,76341.0,0.22992106]
[1731006667007,0.13224102,76342.0,76341.0,0.26698504]
[1731006667469,0.13224102,76342.0,76341.0,0.36698504]
[1731006668182,0.13224102,76342.0,76341.0,0.36782004]
[1731006668652,0.00167,76352.0,76341.0,0.36782004]
[1731006668653,0.00167,76352.0,76351.0,0.00049014]
[1731006668908,0.00167,76352.0,76351.0,0.55958729]
[1731006669140,0.00167,76352.0,76351.0,0.33286655]
[1731006669917,0.01954207,76386.0,76375.0,0.32943092]
[1731006670166,0.13224102,76380.0,76376.0,0.1]
[1731006670420,0.13224102,76380.0,76376.0,0.10270143]
[1731006671323,0.13224102,76380.0,76376.0,0.10319157]
[1731006671563,0.13224102,76380.0,76376.0,0.10270143]
[1731006672004,0.13224102,76380.0,76376.0,0.10319157]
[1731006673147,0.13224102,76380.0,76379.0,0.00049014]
[1731006673608,0.13224102,76380.0,76379.0,0.00265171]
[1731006673825,0.13224102,76380.0,76373.0,0.00049014]
[1731006674050,0.13224102,76380.0,76379.0,0.23222245]
[1731006674273,0.13224102,76380.0,76379.0,0.32992106]
[1731006674514,0.13224102,76380.0,76379.0,0.33271232]
[1731006676065,0.13224102,76380.0,76379.0,0.33222218]
[1731006676326,0.13224102,76380.0,76379.0,0.00279126]
[1731006676327,0.15524102,76380.0,76379.0,0.00279126]
[1731006676551,0.001,76378.0,76365.0,0.19604127]
[1731006676819,0.13224102,76366.0,76365.0,0.19604127]
[1731006677038,0.15524102,76366.0,76365.0,0.19604127]
[1731006677259,0.15524102,76366.0,76355.0,0.22992106]
[1731006677501,0.15524102,76366.0,76355.0,0.22943092]
[1731006677502,0.13224102,76362.0,76355.0,0.22943092]
[1731006677738,0.023,76366.0,76355.0,0.22943092]
[1731006677739,0.13224102,76360.0,76355.0,0.22943092]
[1731006678782,0.13224102,76360.0,76356.0,0.1]
[1731006679714,0.13224102,76357.0,76356.0,0.1]
[1731006679968,0.023,76356.0,76341.0,0.00132514]
[1731006680203,0.13224102,76348.0,76345.0,0.19604127]
[1731006680451,0.03563656,76366.0,76347.0,0.22943092]
[1731006680689,0.13224102,76359.0,76358.0,0.00049014]
[1731006680938,0.13224102,76365.0,76364.0,0.00049014]
[1731006681147,0.03315387,76377.0,76364.0,0.00049014]
[1731006681369,0.19604127,76370.0,76364.0,0.00049014]
[1731006681583,0.03896078,76384.0,76371.0,0.1]
[1731006681794,0.13224102,76383.0,76381.0,0.22943092]
[1731006682003,0.19604127,76382.0,76381.0,0.22943092]
[1731006682225,0.13224102,76382.0,76381.0,0.22943092]
[1731006682457,0.13224102,76382.0,76374.0,0.1]
[1731006682458,0.023,76381.0,76374.0,0.1]
[1731006682708,0.023,76381.0,76371.0,0.1]
[1731006682709,0.13224102,76375.0,76371.0,0.1]
[1731006682964,0.13224102,76372.0,76371.0,0.1]
[1731006683175,0.15524102,76372.0,76371.0,0.1]
[1731006684027,0.023,76371.0,76365.0,0.1]
[1731006684237,0.13224102,76370.0,76365.0,0.1]
[1731006685497,0.13224102,76370.0,76369.0,0.00049014]
[1731006685712,0.13224102,76370.0,76369.0,0.00072545]
[1731006687203,0.13224102,76370.0,76369.0,0.00385086]
[1731006687415,0.001668,76395.0,76382.0,0.00049014]
[1731006687670,0.13224102,76392.0,76391.0,0.22943092]
[1731006688112,0.13675088,76392.0,76391.0,0.00311916]
[1731006688579,0.00450986,76391.0,76384.0,0.1]
[1731006688785,0.023,76390.0,76384.0,0.1]
[1731006689000,0.023,76386.0,76375.0,0.22943092]
[1731006689215,0.023,76386.0,76376.0,0.1]
[1731006690136,0.023,76391.0,76384.0,0.22943092]
[1731006690361,0.13224102,76392.0,76388.0,0.00023531]
[1731006690588,0.13224102,76392.0,76391.0,0.00023531]
[1731006691011,0.13224102,76392.0,76385.0,0.10049014]
[1731006691012,0.13224102,76392.0,76389.0,0.00023531]
[1731006691477,0.13224102,76392.0,76391.0,0.22943092]
[1731006691688,0.13224102,76392.0,76391.0,0.32992106]
[1731006692827,0.000742,76417.0,76403.0,0.00049014]
[1731006693059,0.19604127,76404.0,76403.0,0.00049014]
[1731006693268,0.13224102,76404.0,76403.0,0.00072545]
[1731006693935,0.13224102,76404.0,76403.0,0.00049014]
[1731006694147,0.13224102,76404.0,76403.0,0.32992106]
[1731006694361,0.13224102,76404.0,76403.0,0.33297213]
[1731006694583,0.000742,76417.0,76409.0,0.00049014]
[1731006694799,0.00450986,76396.0,76378.0,0.00023531]
[1731006695030,0.13224102,76394.0,76390.0,0.19604127]
[1731006695492,0.13224102,76394.0,76390.0,0.19653141]
[1731006695705,0.00450986,76415.0,76398.0,0.00049014]
[1731006695936,0.19604127,76401.0,76398.0,0.00049014]
[1731006696174,0.00450986,76415.0,76398.0,0.00049014]
[1731006696175,0.13224102,76400.0,76398.0,0.00049014]
[1731006696888,0.00450986,76415.0,76389.0,0.19604127]
[1731006696889,0.000742,76417.0,76409.0,0.00023531]
[1731006697111,0.19604127,76411.0,76409.0,0.00023531]
[1731006697337,0.000742,76417.0,76416.0,0.22943092]
[1731006697571,0.000742,76417.0,76411.0,0.1]
[1731006697784,0.000742,76417.0,76416.0,0.002613]
[1731006698200,0.000742,76417.0,76411.0,0.1]
[1731006698406,0.000742,76417.0,76416.0,0.00261334]
[1731006698611,0.000742,76417.0,76411.0,0.1]
[1731006698819,0.000742,76417.0,76416.0,0.00261334]
[1731006699040,0.000742,76417.0,76411.0,0.1]
[1731006699261,0.023,76416.0,76400.0,0.00049014]
[1731006699482,0.023,76414.0,76397.0,0.19627658]
[1731006699706,0.023,76412.0,76400.0,0.00049014]
[1731006699964,0.023,76410.0,76397.0,0.22507056]
[1731006700173,0.023,76408.0,76397.0,0.22507056]
[1731006700403,0.13224102,76407.0,76397.0,0.22507056]
[1731006700807,0.13224102,76407.0,76397.0,0.03313374]
[1731006701215,0.13224102,76407.0,76394.0,0.00023531]
[1731006701418,0.13224102,76407.0,76395.0,0.03473677]
[1731006701624,0.13224102,76407.0,76398.0,0.1]
[1731006701831,0.13224102,76407.0,76404.0,0.00023531]
[1731006702038,0.13224102,76407.0,76398.0,0.1]
[1731006702695,0.13224102,76407.0,76399.0,0.00261783]
[1731006703158,0.13224102,76407.0,76396.0,0.00023531]
[1731006703637,0.13219837,76407.0,76397.0,0.00261894]
[1731006703898,0.19604127,76405.0,76397.0,0.00261894]
[1731006704137,0.15524102,76404.0,76395.0,0.03472658]
[1731006704579,0.023,76402.0,76396.0,0.00245426]
[1731006704799,0.13224102,76401.0,76396.0,0.00245426]
[1731006705014,0.023,76400.0,76387.0,0.1]
[1731006705200,0.13224102,76399.0,76387.0,0.1]
[1731006705475,0.023,76398.0,76387.0,0.1]
[1731006705733,0.13224102,76397.0,76388.0,0.00247052]
[1731006705952,0.00176469,76411.0,76388.0,0.00247052]
[1731006705953,0.00167,76410.0,76396.0,0.00023531]
[1731006706186,0.19604127,76404.0,76397.0,0.00023531]
[1731006706425,0.13224102,76403.0,76397.0,0.00270707]
[1731006706661,0.13224102,76403.0,76397.0,0.00023531]
[1731006706877,0.13224102,76403.0,76398.0,0.00246451]
[1731006707321,0.13224102,76403.0,76397.0,0.00023531]
[1731006707545,0.13224102,76403.0,76399.0,0.00246407]
[1731006707797,0.13224102,76403.0,76397.0,0.00023531]
[1731006707798,0.13224102,76403.0,76398.0,0.00246451]
[1731006708065,0.19604127,76402.0,76397.0,0.00023531]
[1731006708291,0.15524102,76401.0,76399.0,0.00246441]
[1731006708538,0.16024102,76400.0,76398.0,0.00246257]
[1731006708759,0.023,76399.0,76388.0,0.1]
[1731006709004,0.13224102,76392.0,76379.0,0.00023531]
[1731006709243,0.15524102,76391.0,76389.0,0.00247741]
[1731006709456,0.15524102,76391.0,76379.0,0.00023531]
[1731006709915,0.15524102,76391.0,76379.0,0.03383292]
[1731006710131,0.15524102,76391.0,76379.0,0.00023531]
[1731006710379,0.15524102,76391.0,76380.0,0.00248664]
[1731006710591,0.15524102,76391.0,76379.0,0.00023531]
[1731006710799,0.023,76389.0,76373.0,0.00023531]
[1731006711015,0.13224102,76388.0,76373.0,0.00023531]
[1731006711235,0.023,76387.0,76373.0,0.00023531]
[1731006711473,0.023,76385.0,76374.0,0.00250092]
[1731006711721,0.13224102,76384.0,76376.0,0.00023531]
[1731006712379,0.13224102,76384.0,76377.0,0.00249812]
[1731006713289,0.023,76383.0,76378.0,0.00249832]
[1731006713463,0.023,76381.0,76372.0,0.00023531]
[1731006713672,0.13224102,76380.0,76372.0,0.00023531]
[1731006713881,0.13224102,76380.0,76379.0,0.1]
[1731006714106,0.15524102,76380.0,76379.0,0.1]
[1731006714314,0.15524102,76380.0,76379.0,0.10234003]
[1731006714524,0.15524102,76380.0,76379.0,0.1]
[1731006714727,0.15524102,76380.0,76379.0,0.00234037]
[1731006715161,0.15524102,76380.0,76371.0,0.03387246]
[1731006715162,0.023,76379.0,76371.0,0.03387246]
[1731006715444,0.15524102,76375.0,76371.0,0.03387246]
[1731006715666,0.15524102,76375.0,76359.0,0.00023531]
[1731006715667,0.023,76371.0,76359.0,0.00023531]
[1731006715905,0.13224102,76370.0,76358.0,0.00135063]
[1731006716116,0.023,76369.0,76362.0,0.19627658]
[1731006716331,0.13224102,76368.0,76362.0,0.19627658]
[1731006716542,0.023,76367.0,76362.0,0.00023531]
[1731006716753,0.023,76365.0,76362.0,0.00023531]
[1731006716978,0.023,76378.0,76369.0,0.00023531]
[1731006717199,0.32828229,76377.0,76376.0,0.00023531]
[1731006717434,0.13224102,76377.0,76376.0,0.00023531]
[1731006718072,0.13224102,76377.0,76376.0,0.00259912]
[1731006718285,0.13224102,76377.0,76376.0,0.00023531]
[1731006718539,0.13224102,76377.0,76376.0,0.00259946]
[1731006718745,0.13224102,76377.0,76376.0,0.00023531]
[1731006718952,0.13224102,76377.0,76376.0,0.0025998]
[1731006719202,0.13224102,76377.0,76368.0,0.00023531]
[1731006719421,0.13224102,76377.0,76376.0,0.00236518]
[1731006719867,0.13224102,76377.0,76368.0,0.03355308]
[1731006720083,0.023,76376.0,76368.0,0.03355308]
[1731006720297,0.023,76376.0,76364.0,0.19604127]
[1731006720298,0.023,76374.0,76364.0,0.19604127]
[1731006720524,0.023,76372.0,76364.0,0.19604127]
[1731006720745,0.023,76384.0,76371.0,0.00023531]
[1731006720957,0.005,76387.0,76358.0,0.34638387]
[1731006720958,0.023,76377.0,76369.0,0.00023531]
[1731006721410,0.005,76390.0,76369.0,0.00023531]
[1731006721411,0.023,76384.0,76369.0,0.00023531]
[1731006721656,0.005,76390.0,76369.0,0.00023531]
[1731006721657,0.023,76381.0,76369.0,0.00023531]
[1731006721869,0.023,76379.0,76367.0,0.00023531]
[1731006722101,0.023,76379.0,76367.0,0.10023531]
[1731006722102,0.13224102,76378.0,76367.0,0.10023531]
[1731006722321,0.023,76377.0,76367.0,0.10023531]
[1731006722528,0.19604127,76382.0,76367.0,0.10023531]
[1731006722529,0.13224102,76376.0,76367.0,0.1]
[1731006723638,0.13224102,76376.0,76375.0,0.00023531]
[1731006724298,0.13224102,76376.0,76369.0,0.00023531]
[1731006725144,0.06346847,76401.0,76371.0,0.1]
[1731006725371,0.13224102,76395.0,76387.0,0.00023531]
[1731006725792,0.03897898,76399.0,76395.0,0.00023531]
[1731006726240,0.03897898,76399.0,76395.0,0.01523531]
[1731006726437,0.000742,76431.0,76395.0,0.01723531]
[1731006726651,0.000742,76431.0,76409.0,0.00023531]
[1731006726877,0.000742,76431.0,76409.0,0.45512097]
[1731006727087,0.000742,76431.0,76409.0,0.46250386]
[1731006727316,0.000742,76431.0,76409.0,0.46284971]
[1731006727523,0.000742,76431.0,76409.0,0.46484971]
[1731006727931,0.000742,76431.0,76409.0,0.00758116]
[1731006728345,0.000742,76431.0,76409.0,0.11019834]
[1731006728546,0.000742,76431.0,76409.0,0.10758116]
[1731006729572,0.000742,76431.0,76409.0,0.01019825]
[1731006729751,0.000742,76431.0,76409.0,0.02019825]
[1731006729966,0.000742,76431.0,76409.0,0.01758116]
[1731006730893,0.000742,76431.0,76409.0,0.00758116]
[1731006731110,0.000742,76431.0,76409.0,0.00258116]
[1731006731594,0.000742,76431.0,76409.0,0.36284971]
[1731006731814,0.000742,76431.0,76409.0,0.39420989]
[1731006732741,0.000742,76431.0,76409.0,0.64422859]
[1731006732958,0.000742,76431.0,76409.0,0.64622859]
[1731006733179,0.00093507,76410.0,76409.0,0.68096487]
[1731006733391,0.000742,76431.0,76416.0,0.01723531]
[1731006733600,0.000742,76431.0,76416.0,0.25209268]
[1731006733803,0.000742,76431.0,76416.0,0.28217711]
[1731006734459,0.000742,76431.0,76419.0,0.01523531]
[1731006734668,0.000742,76431.0,76419.0,0.24747633]
[1731006734892,0.000742,76431.0,76419.0,0.00245403]
[1731006737316,0.000742,76431.0,76419.0,0.38556358]
[1731006737544,0.000742,76431.0,76419.0,0.63363086]
[1731006737775,0.000742,76431.0,76419.0,0.6248046]
[1731006738201,0.0333028,76464.0,76433.0,0.01]
[1731006738410,0.19604127,76434.0,76430.0,0.1]
[1731006738658,0.005,76451.0,76440.0,0.1]
[1731006738838,0.19604127,76448.0,76440.0,0.1]
[1731006739045,0.005,76458.0,76440.0,0.1]
[1731006739246,0.19604127,76452.0,76440.0,0.1]
[1731006739457,0.19604127,76452.0,76435.0,0.00023531]
[1731006739670,0.15524102,76451.0,76438.0,0.1]
[1731006740477,0.15524102,76451.0,76450.0,0.00023531]
[1731006740681,0.15474823,76451.0,76439.0,0.19627658]
[1731006740884,0.15474823,76451.0,76440.0,0.1]
[1731006741091,0.023,76449.0,76440.0,0.1]
[1731006741298,0.023,76447.0,76440.0,0.1]
[1731006741500,0.01,76457.0,76444.0,0.1]
[1731006741501,0.13224102,76446.0,76444.0,0.1]
[1731006742545,0.13224102,76446.0,76442.0,0.00023531]
[1731006743380,0.13224102,76446.0,76435.0,0.00023531]
[1731006743588,0.13224102,76446.0,76428.0,0.1]
[1731006743589,0.023,76445.0,76428.0,0.1]
[1731006743788,0.13224102,76444.0,76436.0,0.10023531]
[1731006744019,0.13224102,76444.0,76436.0,0.1]
[1731006744190,0.13224102,76444.0,76443.0,0.00023531]
[1731006744690,0.03972393,76457.0,76443.0,0.00023531]
[1731006744899,0.023,76455.0,76449.0,0.00023531]
[1731006745109,0.13224102,76454.0,76451.0,0.00023531]
[1731006745522,0.13224102,76454.0,76453.0,0.00023531]
[1731006745723,0.13224102,76454.0,76437.0,0.00261623]
[1731006745724,0.13224102,76454.0,76452.0,0.00023531]
[1731006745966,0.13224102,76454.0,76451.0,0.00023531]
[1731006746591,0.13224102,76454.0,76437.0,0.00261623]
[1731006746592,0.0400813,76469.0,76454.0,0.00023531]
[1731006746796,0.19604127,76462.0,76454.0,0.00023531]
[1731006746976,0.13224102,76461.0,76460.0,0.00023531]
[1731006747186,0.13224102,76461.0,76453.0,0.10023531]
[1731006747388,0.14546512,76461.0,76453.0,0.10023531]
[1731006747588,0.13224102,76461.0,76453.0,0.00023531]
[1731006748041,0.023,76460.0,76453.0,0.00023531]
[1731006748241,0.023,76458.0,76453.0,0.00023531]
[1731006748437,0.13224102,76457.0,76453.0,0.03453386]
[1731006748677,0.13224102,76457.0,76456.0,0.00023531]
[1731006748882,0.13224102,76457.0,76451.0,0.00023531]
[1731006749088,0.13224102,76457.0,76449.0,0.00023531]
[1731006749761,0.13224102,76457.0,76444.0,0.1]
[1731006749988,0.13224102,76457.0,76456.0,0.00023531]
[1731006751199,0.000741,76469.0,76456.0,0.00438495]
[1731006751425,0.19604127,76467.0,76456.0,0.11137905]
[1731006751637,0.13224102,76467.0,76458.0,0.1]
[1731006751879,0.19604127,76459.0,76458.0,0.1]
[1731006752093,0.13224102,76467.0,76459.0,0.00023531]
[1731006752299,0.32828229,76466.0,76459.0,0.00023531]
[1731006752524,0.32828229,76466.0,76458.0,0.1]
[1731006752525,0.13224102,76466.0,76462.0,0.00023531]
[1731006754316,0.13224102,76466.0,76458.0,0.0347758]
[1731006754538,0.01215556,76465.0,76458.0,0.0347758]
[1731006754766,0.14439658,76464.0,76456.0,0.00023531]
[1731006754987,0.13224102,76464.0,76456.0,0.00023531]
[1731006755202,0.01215573,76463.0,76456.0,0.00023531]
[1731006755408,0.14439675,76462.0,76458.0,0.00023531]
[1731006755625,0.14439675,76462.0,76444.0,0.1]
[1731006755626,0.01215573,76461.0,76459.0,0.00023531]
[1731006755826,0.14439675,76460.0,76459.0,0.00023531]
[1731006756671,0.14439675,76460.0,76457.0,0.00023531]
[1731006756876,0.208197,76459.0,76444.0,0.1]
[1731006757108,0.14439675,76458.0,76448.0,0.00023531]
[1731006757326,0.01215573,76457.0,76448.0,0.00023531]
[1731006757542,0.01443967,76460.0,76446.0,0.00023531]
[1731006757543,0.34043802,76456.0,76446.0,0.00023531]
[1731006757809,0.03515573,76455.0,76443.0,0.03368402]
[1731006759735,0.01215573,76447.0,76446.0,0.00023531]
[1731006759936,0.000741,76469.0,76446.0,0.00023531]
[1731006760142,0.19604127,76461.0,76460.0,0.32884629]
[1731006760286,0.01219026,76461.0,76460.0,0.3290816]
[1731006760696,0.000741,76469.0,76468.0,0.00023531]
[1731006761013,0.01293028,76469.0,76468.0,0.3290816]
[1731006762133,0.000741,76469.0,76468.0,0.3290816]
[1731006762357,0.14517129,76469.0,76468.0,0.00023531]
[1731006762563,0.01293027,76469.0,76468.0,0.00023531]
[1731006764489,0.01293027,76469.0,76468.0,0.10023531]
[1731006766188,0.01293027,76469.0,76468.0,0.12461507]